[Event "Live Chess"]
[Site "Chess.com"]
[Date "2024.06.01"]
[Round "-"]
[White "educatedlad"]
[Black "Kyrylo7770"]
[Result "1-0"]
[WhiteElo "1764"]
[BlackElo "1684"]
[TimeControl "300"]
[EndTime "11:07:17 PDT"]
[Termination "educatedlad won by checkmate"]

1. d4 {[%clk 0:04:58.8]} 1... d5 {[%clk 0:04:58.7]} 2. Bg5 {[%clk 0:04:58.3]}
2... Bg4 {[%clk 0:04:58]} 3. h3 {[%clk 0:04:57]} 3... Bh5 {[%clk 0:04:57.1]} 4.
Nc3 {[%clk 0:04:54.6]} 4... h6 {[%clk 0:04:56.2]} 5. Bf4 {[%clk 0:04:52.2]} 5...
e6 {[%clk 0:04:54.6]} 6. g4 {[%clk 0:04:50.6]} 6... Bg6 {[%clk 0:04:53.7]} 7.
Bg2 {[%clk 0:04:50.5]} 7... Bd6 {[%clk 0:04:52.7]} 8. Bxd6 {[%clk 0:04:46.8]}
8... Qxd6 {[%clk 0:04:51.5]} 9. e4 {[%clk 0:04:43.8]} 9... dxe4 {[%clk 0:04:45]}
10. Nxe4 {[%clk 0:04:40.6]} 10... Qb4+ {[%clk 0:04:44]} 11. Nc3 {[%clk
0:04:32.4]} 11... Qxb2 {[%clk 0:04:40.6]} 12. Nge2 {[%clk 0:04:28.7]} 12... Nc6
{[%clk 0:04:31.4]} 13. O-O {[%clk 0:04:18.9]} 13... Bxc2 {[%clk 0:04:29.3]} 14.
Qd2 {[%clk 0:04:18.1]} 14... Nb4 {[%clk 0:04:26.5]} 15. Nb5 {[%clk 0:04:16.1]}
15... O-O-O {[%clk 0:04:18.3]} 16. Rab1 {[%clk 0:04:07.9]} 16... Qxa2 {[%clk
0:03:23.8]} 17. Rxb4 {[%clk 0:03:55.1]} 17... Nf6 {[%clk 0:03:19.4]} 18. Nxa7+
{[%clk 0:03:44.4]} 18... Qxa7 {[%clk 0:03:16.2]} 19. Qxc2 {[%clk 0:03:43.1]}
19... c6 {[%clk 0:03:07.6]} 20. Rfb1 {[%clk 0:03:32.9]} 20... Nd5 {[%clk
0:03:01.2]} 21. Ra4 {[%clk 0:03:21.9]} 21... Qb8 {[%clk 0:02:59.5]} 22. Bxd5
{[%clk 0:03:18.5]} 22... exd5 {[%clk 0:02:58.8]} 23. Nc3 {[%clk 0:03:17.2]}
23... h5 {[%clk 0:02:51.8]} 24. Rba1 {[%clk 0:03:15.1]} 24... Qf4 {[%clk
0:02:49.5]} 25. Ra8+ {[%clk 0:03:13.2]} 25... Kd7 {[%clk 0:02:49.1]} 26. R1a7
{[%clk 0:03:10.2]} 26... Rxa8 {[%clk 0:02:47.7]} 27. Rxb7+ {[%clk 0:03:08.7]}
27... Ke6 {[%clk 0:02:47]} 28. Qe2+ {[%clk 0:03:06.3]} 28... Kf6 {[%clk
0:02:43]} 29. Qe7+ {[%clk 0:03:00.9]} 29... Kg6 {[%clk 0:02:42.2]} 30. gxh5+
{[%clk 0:02:58.4]} 30... Kxh5 {[%clk 0:02:38.5]} 31. Ne2 {[%clk 0:02:49.1]}
31... Ra1+ {[%clk 0:02:36.6]} 32. Kg2 {[%clk 0:02:47.4]} 32... Qf5 {[%clk
0:02:20.5]} 33. Ng3+ {[%clk 0:02:46.1]} 33... Kg6 {[%clk 0:02:19.1]} 34. Nxf5
{[%clk 0:02:43.5]} 34... Kxf5 {[%clk 0:02:19]} 35. Qxf7+ {[%clk 0:02:42.8]}
35... Ke4 {[%clk 0:02:18.8]} 36. Qxg7 {[%clk 0:02:37.8]} 36... Rha8 {[%clk
0:02:17.3]} 37. Re7+ {[%clk 0:02:35.9]} 37... Kd3 {[%clk 0:02:16]} 38. Qg3+
{[%clk 0:02:35.3]} 38... Kc4 {[%clk 0:02:14.8]} 39. Rc7 {[%clk 0:02:31.6]} 39...
Kxd4 {[%clk 0:02:10.4]} 40. Qe3+ {[%clk 0:02:28.4]} 40... Kc4 {[%clk 0:02:08]}
41. Rxc6+ {[%clk 0:02:28]} 41... Kb5 {[%clk 0:02:07.5]} 42. Qc5+ {[%clk
0:02:27]} 42... Ka4 {[%clk 0:02:05.8]} 43. Rb6 {[%clk 0:02:24.2]} 43... Rg8+
{[%clk 0:02:03.2]} 44. Kf3 {[%clk 0:02:23.3]} 44... Ra3+ {[%clk 0:02:02.3]} 45.
Ke2 {[%clk 0:02:20.5]} 45... Re8+ {[%clk 0:02:01.5]} 46. Kf1 {[%clk 0:02:17.8]}
46... Ra1+ {[%clk 0:01:58.4]} 47. Kg2 {[%clk 0:02:16.5]} 47... Rg8+ {[%clk
0:01:57.7]} 48. Kh2 {[%clk 0:02:14.1]} 48... Ra8 {[%clk 0:01:53.1]} 49. Qb4#
{[%clk 0:02:12]} 1-0

[Event "Live Chess"]
[Site "Chess.com"]
[Date "2024.06.01"]
[Round "-"]
[White "Nazar-Makarchuk"]
[Black "degringolade64"]
[Result "0-1"]
[WhiteElo "1441"]
[BlackElo "2058"]
[TimeControl "300"]
[EndTime "11:07:22 PDT"]
[Termination "degringolade64 won by checkmate"]

1. e4 {[%clk 0:04:56.5]} 1... e5 {[%clk 0:04:57.4]} 2. Nf3 {[%clk 0:04:56]} 2...
Nc6 {[%clk 0:04:55.3]} 3. Bb5 {[%clk 0:04:55.5]} 3... a6 {[%clk 0:04:53.4]} 4.
Bxc6 {[%clk 0:04:55.1]} 4... dxc6 {[%clk 0:04:51.2]} 5. O-O {[%clk 0:04:54.7]}
5... Qf6 {[%clk 0:04:49.9]} 6. d4 {[%clk 0:04:53.8]} 6... exd4 {[%clk
0:04:48.2]} 7. Qxd4 {[%clk 0:04:53.4]} 7... Qxd4 {[%clk 0:04:45.7]} 8. Nxd4
{[%clk 0:04:52.9]} 8... Bd7 {[%clk 0:04:40.4]} 9. Nc3 {[%clk 0:04:52]} 9...
O-O-O {[%clk 0:04:32.8]} 10. Bg5 {[%clk 0:04:47.9]} 10... f6 {[%clk 0:04:31.1]}
11. Bf4 {[%clk 0:04:46.1]} 11... c5 {[%clk 0:04:24.2]} 12. Nf3 {[%clk
0:04:45.1]} 12... Ne7 {[%clk 0:04:14.8]} 13. e5 {[%clk 0:04:42.4]} 13... Ng6
{[%clk 0:04:13.1]} 14. Bg3 {[%clk 0:04:40.2]} 14... h5 {[%clk 0:04:03.2]} 15. h3
{[%clk 0:04:37.4]} 15... h4 {[%clk 0:04:01.8]} 16. Bh2 {[%clk 0:04:36.1]} 16...
Bc6 {[%clk 0:03:20]} 17. exf6 {[%clk 0:04:34]} 17... gxf6 {[%clk 0:03:17.5]} 18.
Rfd1 {[%clk 0:04:31.4]} 18... Bd6 {[%clk 0:03:02.3]} 19. Bxd6 {[%clk 0:04:23.6]}
19... cxd6 {[%clk 0:03:00.6]} 20. Nd5 {[%clk 0:04:18.5]} 20... Rdf8 {[%clk
0:02:33.4]} 21. c4 {[%clk 0:04:04.4]} 21... Rhg8 {[%clk 0:02:30]} 22. Re1 {[%clk
0:04:02.5]} 22... Bxd5 {[%clk 0:02:26.9]} 23. cxd5 {[%clk 0:04:01.2]} 23... Nf4
{[%clk 0:02:26.4]} 24. Nxh4 {[%clk 0:03:40.7]} 24... Nxh3+ {[%clk 0:02:22.8]}
25. Kh2 {[%clk 0:03:37.1]} 25... Nf4 {[%clk 0:02:21.4]} 26. g3 {[%clk
0:03:33.6]} 26... Nxd5 {[%clk 0:02:19.1]} 27. Rad1 {[%clk 0:03:28.7]} 27... Rg5
{[%clk 0:02:12.6]} 28. Nf3 {[%clk 0:03:22.4]} 28... Rh5+ {[%clk 0:01:52.7]} 29.
Kg2 {[%clk 0:03:20.1]} 29... Kd7 {[%clk 0:01:42.3]} 30. Re2 {[%clk 0:03:14.9]}
30... Rg8 {[%clk 0:01:31.2]} 31. Red2 {[%clk 0:03:12.5]} 31... Kc6 {[%clk
0:01:18.8]} 32. Kf1 {[%clk 0:03:07.3]} 32... Rh1+ {[%clk 0:01:12.6]} 33. Ke2
{[%clk 0:03:05.4]} 33... Rxd1 {[%clk 0:01:10.6]} 34. Kxd1 {[%clk 0:03:03.7]}
34... Re8 {[%clk 0:01:03.9]} 35. Nh4 {[%clk 0:02:59.4]} 35... b5 {[%clk
0:00:54]} 36. Nf5 {[%clk 0:02:54.8]} 36... Re6 {[%clk 0:00:51.5]} 37. Re2 {[%clk
0:02:43.1]} 37... Re5 {[%clk 0:00:41.2]} 38. Rxe5 {[%clk 0:02:40.7]} 38... dxe5
{[%clk 0:00:41.1]} 39. Ke2 {[%clk 0:02:35.5]} 39... c4 {[%clk 0:00:39.6]} 40.
Nh6 {[%clk 0:02:32.2]} 40... b4 {[%clk 0:00:37.8]} 41. Ng8 {[%clk 0:02:30.6]}
41... a5 {[%clk 0:00:36]} 42. Kd2 {[%clk 0:02:20.5]} 42... a4 {[%clk 0:00:34.8]}
43. g4 {[%clk 0:02:18.2]} 43... a3 {[%clk 0:00:32.8]} 44. bxa3 {[%clk
0:02:16.7]} 44... bxa3 {[%clk 0:00:32.7]} 45. Kc2 {[%clk 0:02:15.9]} 45... Nb4+
{[%clk 0:00:31.7]} 46. Kb1 {[%clk 0:02:12.4]} 46... Nd5 {[%clk 0:00:27.2]} 47.
Kc2 {[%clk 0:02:10.1]} 47... Kc5 {[%clk 0:00:26.8]} 48. f3 {[%clk 0:02:00.3]}
48... Kd4 {[%clk 0:00:25.9]} 49. Kd2 {[%clk 0:01:55]} 49... c3+ {[%clk
0:00:24.4]} 50. Ke2 {[%clk 0:01:52]} 50... Nb4 {[%clk 0:00:22]} 51. Nxf6 {[%clk
0:01:48.8]} 51... Nxa2 {[%clk 0:00:21.2]} 52. Kd1 {[%clk 0:01:48.3]} 52... Kd3
{[%clk 0:00:19.1]} 53. Ne4 {[%clk 0:01:34.4]} 53... c2+ {[%clk 0:00:19]} 54. Ke1
{[%clk 0:01:33.6]} 54... c1=Q+ {[%clk 0:00:17.9]} 55. Kf2 {[%clk 0:01:33.2]}
55... Qe3+ {[%clk 0:00:16.8]} 56. Kg3 {[%clk 0:01:32.1]} 56... Qf4+ {[%clk
0:00:16.1]} 57. Kf2 {[%clk 0:01:30.8]} 57... Nc3 {[%clk 0:00:16]} 58. Nc5+
{[%clk 0:01:27]} 58... Kd4 {[%clk 0:00:14.9]} 59. Ne6+ {[%clk 0:01:25.8]} 59...
Kd5 {[%clk 0:00:14.3]} 60. Nxf4+ {[%clk 0:01:25.1]} 60... exf4 {[%clk
0:00:14.2]} 61. g5 {[%clk 0:01:24.5]} 61... Ke5 {[%clk 0:00:13.6]} 62. Ke1
{[%clk 0:01:21.5]} 62... a2 {[%clk 0:00:12.3]} 63. Kd2 {[%clk 0:01:20.1]} 63...
Ke6 {[%clk 0:00:12.2]} 64. Kxc3 {[%clk 0:01:19.3]} 64... a1=Q+ {[%clk
0:00:11.3]} 65. Kd3 {[%clk 0:01:18.6]} 65... Qa3+ {[%clk 0:00:10.2]} 66. Ke4
{[%clk 0:01:18]} 66... Qb4+ {[%clk 0:00:09.6]} 67. Kd3 {[%clk 0:01:17]} 67...
Ke5 {[%clk 0:00:09.1]} 68. Ke2 {[%clk 0:01:16.3]} 68... Qb2+ {[%clk 0:00:08.1]}
69. Kd3 {[%clk 0:01:15.2]} 69... Qb3+ {[%clk 0:00:08]} 70. Ke2 {[%clk
0:01:14.6]} 70... Kd4 {[%clk 0:00:07.7]} 71. g6 {[%clk 0:01:10.1]} 71... Qe3+
{[%clk 0:00:07.6]} 72. Kf1 {[%clk 0:01:08.7]} 72... Qxf3+ {[%clk 0:00:07.1]} 73.
Kg1 {[%clk 0:01:06.3]} 73... Qg3+ {[%clk 0:00:07]} 74. Kf1 {[%clk 0:01:05.5]}
74... f3 {[%clk 0:00:06.9]} 75. g7 {[%clk 0:00:59.8]} 75... Qg2+ {[%clk
0:00:06.8]} 76. Ke1 {[%clk 0:00:58.6]} 76... Qe2# {[%clk 0:00:06.5]} 0-1

[Event "Live Chess"]
[Site "Chess.com"]
[Date "2024.06.01"]
[Round "-"]
[White "RomanKifliuk"]
[Black "PureDashingOctopus"]
[Result "0-1"]
[WhiteElo "2343"]
[BlackElo "2251"]
[TimeControl "300"]
[EndTime "11:07:34 PDT"]
[Termination "PureDashingOctopus won by resignation"]

1. e4 {[%clk 0:04:57.3]} 1... c5 {[%clk 0:04:57.2]} 2. f4 {[%clk 0:04:56]} 2...
d5 {[%clk 0:04:55.5]} 3. e5 {[%clk 0:04:54.8]} 3... Nc6 {[%clk 0:04:54.2]} 4.
Nf3 {[%clk 0:04:54.7]} 4... Bf5 {[%clk 0:04:52.1]} 5. Bb5 {[%clk 0:04:53.3]}
5... Qb6 {[%clk 0:04:50.2]} 6. Bxc6+ {[%clk 0:04:51.8]} 6... Qxc6 {[%clk
0:04:49.1]} 7. O-O {[%clk 0:04:51.7]} 7... O-O-O {[%clk 0:04:45.2]} 8. Nh4
{[%clk 0:04:50.3]} 8... g6 {[%clk 0:04:40.6]} 9. Nxf5 {[%clk 0:04:48.8]} 9...
gxf5 {[%clk 0:04:39.6]} 10. d3 {[%clk 0:04:48.1]} 10... e6 {[%clk 0:04:38.4]}
11. a4 {[%clk 0:04:46.2]} 11... Ne7 {[%clk 0:04:36.8]} 12. Nc3 {[%clk 0:04:45]}
12... Rg8 {[%clk 0:04:35.2]} 13. Qf3 {[%clk 0:04:42]} 13... Ng6 {[%clk
0:04:24.1]} 14. Qh3 {[%clk 0:04:34.1]} 14... c4 {[%clk 0:04:13.1]} 15. d4 {[%clk
0:04:29.6]} 15... Be7 {[%clk 0:04:07.9]} 16. Be3 {[%clk 0:04:20.7]} 16... Qb6
{[%clk 0:03:30.6]} 17. Ra2 {[%clk 0:03:56.1]} 17... Rg7 {[%clk 0:02:59.6]} 18.
a5 {[%clk 0:03:37.2]} 18... Qc6 {[%clk 0:02:56]} 19. a6 {[%clk 0:03:32.4]} 19...
b5 {[%clk 0:02:52.3]} 20. Ra5 {[%clk 0:03:19]} 20... b4 {[%clk 0:02:39.8]} 21.
Nb5 {[%clk 0:03:17.5]} 21... Qb6 {[%clk 0:02:33.1]} 22. Rfa1 {[%clk 0:03:15.1]}
22... b3 {[%clk 0:02:25.5]} 23. c3 {[%clk 0:03:04.2]} 23... Rdg8 {[%clk
0:02:16.8]} 24. g3 {[%clk 0:03:02.3]} 24... h5 {[%clk 0:02:05.5]} 25. Nd6+
{[%clk 0:02:50.4]} 25... Bxd6 {[%clk 0:02:02.8]} 26. exd6 {[%clk 0:02:50.3]}
26... Qxd6 {[%clk 0:01:50.3]} 27. Rc5+ {[%clk 0:02:48.5]} 27... Kb8 {[%clk
0:01:48.3]} 28. Raa5 {[%clk 0:02:37.5]} 28... Nxf4 {[%clk 0:01:44.4]} 29. Bxf4
{[%clk 0:02:29]} 29... Qxf4 {[%clk 0:01:43.2]} 30. Rab5+ {[%clk 0:02:22.2]}
30... Ka8 {[%clk 0:01:41.1]} 31. Qg2 {[%clk 0:02:21.6]} 31... Qc1+ {[%clk
0:01:34.7]} 32. Qf1 {[%clk 0:02:07.4]} 32... Qxb2 {[%clk 0:01:03.8]} 33. Qf3
{[%clk 0:01:53.3]} 33... Qc1+ {[%clk 0:00:58.9]} 34. Kg2 {[%clk 0:01:52]} 34...
Qd2+ {[%clk 0:00:54.8]} 35. Kh3 {[%clk 0:01:50.8]} 35... Qg5 {[%clk 0:00:46.1]}
36. Rc7 {[%clk 0:01:35.9]} 36... f6 {[%clk 0:00:30.3]} 37. Rxg7 {[%clk
0:01:09.6]} 37... Qxg7 {[%clk 0:00:27.4]} 38. Qe3 {[%clk 0:01:03.4]} 38... Qg4+
{[%clk 0:00:26.1]} 39. Kg2 {[%clk 0:01:02.1]} 39... Qe4+ {[%clk 0:00:25.7]} 40.
Qxe4 {[%clk 0:00:59.6]} 40... fxe4 {[%clk 0:00:25.6]} 41. Kf2 {[%clk 0:00:55]}
41... Rb8 {[%clk 0:00:25]} 0-1

[Event "Live Chess"]
[Site "Chess.com"]
[Date "2024.06.01"]
[Round "-"]
[White "StoreySniper"]
[Black "GEMdzq"]
[Result "1-0"]
[WhiteElo "2561"]
[BlackElo "2314"]
[TimeControl "300"]
[EndTime "11:07:40 PDT"]
[Termination "StoreySniper won by resignation"]

1. c4 {[%clk 0:04:57.8]} 1... Nf6 {[%clk 0:04:53.5]} 2. g3 {[%clk 0:04:56.6]}
2... e6 {[%clk 0:04:50.3]} 3. Bg2 {[%clk 0:04:56.2]} 3... d5 {[%clk 0:04:49.4]}
4. Nf3 {[%clk 0:04:53.9]} 4... Be7 {[%clk 0:04:42]} 5. O-O {[%clk 0:04:52.5]}
5... O-O {[%clk 0:04:41.2]} 6. Qc2 {[%clk 0:04:51.3]} 6... c5 {[%clk 0:04:38.4]}
7. cxd5 {[%clk 0:04:43.5]} 7... exd5 {[%clk 0:04:36.9]} 8. d4 {[%clk 0:04:42.7]}
8... Na6 {[%clk 0:04:28.7]} 9. a3 {[%clk 0:04:40.2]} 9... Bg4 {[%clk 0:04:19]}
10. Nc3 {[%clk 0:04:30.2]} 10... Rc8 {[%clk 0:04:16.8]} 11. Qa4 {[%clk
0:04:22.2]} 11... Bd7 {[%clk 0:04:10.2]} 12. Qd1 {[%clk 0:04:19.7]} 12... cxd4
{[%clk 0:04:03.6]} 13. Nxd4 {[%clk 0:04:18.5]} 13... Nc5 {[%clk 0:03:59.3]} 14.
Nxd5 {[%clk 0:04:09.1]} 14... Nxd5 {[%clk 0:03:58.1]} 15. Bxd5 {[%clk 0:04:09]}
15... Ba4 {[%clk 0:03:56.7]} 16. b3 {[%clk 0:03:58.4]} 16... Qxd5 {[%clk
0:03:55.2]} 17. bxa4 {[%clk 0:03:57.2]} 17... Rfd8 {[%clk 0:03:52.9]} 18. e3
{[%clk 0:03:55.1]} 18... Bf6 {[%clk 0:03:42.5]} 19. Bb2 {[%clk 0:03:53.2]} 19...
Ne4 {[%clk 0:03:34.1]} 20. Qf3 {[%clk 0:03:42.5]} 20... Nd2 {[%clk 0:03:16.9]}
21. Qxd5 {[%clk 0:03:38.8]} 21... Rxd5 {[%clk 0:03:16.8]} 22. Rfc1 {[%clk
0:03:25.9]} 22... Nc4 {[%clk 0:02:31.1]} 23. Rc2 {[%clk 0:03:17.7]} 23... Rdd8
{[%clk 0:02:14.7]} 24. Rac1 {[%clk 0:03:15.8]} 24... Nb6 {[%clk 0:02:13.8]} 25.
a5 {[%clk 0:03:10.8]} 25... Rxc2 {[%clk 0:02:11.6]} 26. Rxc2 {[%clk 0:03:10.1]}
26... Nd5 {[%clk 0:02:10.4]} 27. Nb5 {[%clk 0:02:54.3]} 27... Bxb2 {[%clk
0:02:00.9]} 28. Rxb2 {[%clk 0:02:53.4]} 28... a6 {[%clk 0:02:00]} 29. Nd4 {[%clk
0:02:42.9]} 29... Rd7 {[%clk 0:01:58.9]} 30. Nb3 {[%clk 0:02:35.7]} 30... g6
{[%clk 0:01:11.3]} 31. Nc5 {[%clk 0:02:31.6]} 31... Rc7 {[%clk 0:01:10.7]} 32.
Nxb7 {[%clk 0:02:29]} 32... Rc3 {[%clk 0:01:09.7]} 33. Rd2 {[%clk 0:02:06.6]}
33... Nf6 {[%clk 0:01:08.5]} 34. Rd6 {[%clk 0:02:01.7]} 34... Ne4 {[%clk
0:01:06.5]} 35. Rxa6 {[%clk 0:01:54.2]} 35... Rxa3 {[%clk 0:01:05.3]} 36. Ra8+
{[%clk 0:01:50.2]} 36... Kg7 {[%clk 0:01:03.8]} 37. a6 {[%clk 0:01:49.4]} 37...
Ra2 {[%clk 0:01:02.1]} 38. a7 {[%clk 0:01:35.8]} 38... Nxf2 {[%clk 0:00:58.5]}
39. Nd6 {[%clk 0:01:30]} 39... Nd3 {[%clk 0:00:41.8]} 40. Nb5 {[%clk 0:01:24.4]}
40... Ne5 {[%clk 0:00:35.4]} 41. Rd8 {[%clk 0:01:09.6]} 41... Nf3+ {[%clk
0:00:34.4]} 42. Kf1 {[%clk 0:01:08.4]} 42... Nxh2+ {[%clk 0:00:33.3]} 43. Ke1
{[%clk 0:01:07.7]} 43... Nf3+ {[%clk 0:00:32.4]} 44. Kd1 {[%clk 0:01:07]} 44...
Ra5 {[%clk 0:00:26.9]} 45. a8=Q {[%clk 0:01:04.7]} 1-0

[Event "Live Chess"]
[Site "Chess.com"]
[Date "2024.06.01"]
[Round "-"]
[White "Crowded_House"]
[Black "asingardenof"]
[Result "1-0"]
[WhiteElo "1766"]
[BlackElo "619"]
[TimeControl "300"]
[EndTime "11:08:04 PDT"]
[Termination "Crowded_House won by resignation"]

1. d4 {[%clk 0:04:55.7]} 1... Nf6 {[%clk 0:04:57.7]} 2. Bg5 {[%clk 0:04:54.7]}
2... g6 {[%clk 0:04:54.8]} 3. e3 {[%clk 0:04:52.2]} 3... Bg7 {[%clk 0:04:53.5]}
4. c3 {[%clk 0:04:51.7]} 4... d5 {[%clk 0:04:49.4]} 5. Nf3 {[%clk 0:04:49.4]}
5... Ne4 {[%clk 0:04:42.2]} 6. Bh4 {[%clk 0:04:45.4]} 6... Nd7 {[%clk
0:04:36.7]} 7. Nbd2 {[%clk 0:04:43.6]} 7... Nxd2 {[%clk 0:04:33.9]} 8. Qxd2
{[%clk 0:04:42.2]} 8... Nb6 {[%clk 0:04:25.8]} 9. Bd3 {[%clk 0:04:39.2]} 9...
Bd7 {[%clk 0:04:21.6]} 10. O-O {[%clk 0:04:37.8]} 10... e6 {[%clk 0:04:20.3]}
11. Bxd8 {[%clk 0:04:35.1]} 11... Rxd8 {[%clk 0:04:04.9]} 12. Rfe1 {[%clk
0:04:32.3]} 12... Bf6 {[%clk 0:04:01.7]} 13. e4 {[%clk 0:04:24.1]} 13... Nc4
{[%clk 0:03:59.5]} 14. Bxc4 {[%clk 0:04:21.7]} 14... dxc4 {[%clk 0:03:59.4]} 15.
e5 {[%clk 0:04:12.1]} 15... Bg7 {[%clk 0:03:55.3]} 16. Qe2 {[%clk 0:04:04.1]}
16... f5 {[%clk 0:03:54.6]} 17. exf6 {[%clk 0:03:59.8]} 17... Bxf6 {[%clk
0:03:51.3]} 18. Ne5 {[%clk 0:03:57]} 18... Ke7 {[%clk 0:03:49.8]} 19. Nxd7
{[%clk 0:03:54.4]} 19... Rxd7 {[%clk 0:03:48.4]} 20. Qxc4 {[%clk 0:03:53.5]}
20... Rd5 {[%clk 0:03:41.6]} 21. Qxc7+ {[%clk 0:03:51.7]} 21... Kf8 {[%clk
0:03:39.6]} 22. Rxe6 {[%clk 0:03:44]} 1-0

[Event "Live Chess"]
[Site "Chess.com"]
[Date "2024.06.01"]
[Round "-"]
[White "OurKnightAtTheOpera"]
[Black "Frankie_Badacsonyi"]
[Result "0-1"]
[WhiteElo "2009"]
[BlackElo "2438"]
[TimeControl "300"]
[EndTime "11:08:13 PDT"]
[Termination "Frankie_Badacsonyi won by checkmate"]

1. e4 {[%clk 0:04:59]} 1... c6 {[%clk 0:04:58.9]} 2. d4 {[%clk 0:04:58.4]} 2...
d5 {[%clk 0:04:58.8]} 3. e5 {[%clk 0:04:58.1]} 3... Bf5 {[%clk 0:04:57.4]} 4.
Nf3 {[%clk 0:04:57.7]} 4... e6 {[%clk 0:04:56.6]} 5. Be2 {[%clk 0:04:57.4]} 5...
Ne7 {[%clk 0:04:56]} 6. Nbd2 {[%clk 0:04:56.1]} 6... Ng6 {[%clk 0:04:51.6]} 7.
O-O {[%clk 0:04:54.2]} 7... Nf4 {[%clk 0:04:50.7]} 8. c4 {[%clk 0:04:50.7]} 8...
Nxe2+ {[%clk 0:04:49.9]} 9. Qxe2 {[%clk 0:04:49.8]} 9... Be7 {[%clk 0:04:48.7]}
10. b3 {[%clk 0:04:48.5]} 10... O-O {[%clk 0:04:47.6]} 11. Bb2 {[%clk 0:04:48]}
11... h6 {[%clk 0:04:46.8]} 12. Rfe1 {[%clk 0:04:45.3]} 12... Nd7 {[%clk
0:04:45.1]} 13. Rac1 {[%clk 0:04:44.5]} 13... a5 {[%clk 0:04:43]} 14. a3 {[%clk
0:04:42.1]} 14... Re8 {[%clk 0:04:39.3]} 15. Nf1 {[%clk 0:04:41.4]} 15... Bh7
{[%clk 0:04:37.4]} 16. Ng3 {[%clk 0:04:38.2]} 16... Nf8 {[%clk 0:04:31.2]} 17.
Rc3 {[%clk 0:04:17.2]} 17... Qd7 {[%clk 0:04:15.9]} 18. Rec1 {[%clk 0:04:14.9]}
18... Rec8 {[%clk 0:04:12.7]} 19. Nd2 {[%clk 0:04:09.1]} 19... dxc4 {[%clk
0:04:06.7]} 20. Nxc4 {[%clk 0:03:50.8]} 20... Qxd4 {[%clk 0:03:20.4]} 21. Rd1
{[%clk 0:02:58.7]} 21... Qa7 {[%clk 0:03:05.4]} 22. Nd6 {[%clk 0:02:53.6]} 22...
Rd8 {[%clk 0:02:49.9]} 23. Qf3 {[%clk 0:02:47.3]} 23... Bg6 {[%clk 0:02:46.7]}
24. Nge4 {[%clk 0:02:40.4]} 24... Rd7 {[%clk 0:01:51.4]} 25. Nc5 {[%clk
0:02:29.7]} 25... Rc7 {[%clk 0:01:46.3]} 26. g3 {[%clk 0:01:56]} 26... Nd7
{[%clk 0:01:15.3]} 27. b4 {[%clk 0:01:32.3]} 27... Nxe5 {[%clk 0:01:03.9]} 28.
Qf4 {[%clk 0:01:25.2]} 28... Bf6 {[%clk 0:00:57.9]} 29. Re3 {[%clk 0:01:16.2]}
29... Nd7 {[%clk 0:00:47.2]} 30. Nb5 {[%clk 0:00:42.7]} 30... cxb5 {[%clk
0:00:41.1]} 31. Qxc7 {[%clk 0:00:40.2]} 31... Nxc5 {[%clk 0:00:35.7]} 32. Bxf6
{[%clk 0:00:22.4]} 32... gxf6 {[%clk 0:00:34.6]} 33. Qxc5 {[%clk 0:00:18.9]}
33... Qxc5 {[%clk 0:00:32.9]} 34. bxc5 {[%clk 0:00:18]} 34... Rc8 {[%clk
0:00:32]} 35. Rc3 {[%clk 0:00:16]} 35... b4 {[%clk 0:00:28.2]} 36. axb4 {[%clk
0:00:15.9]} 36... axb4 {[%clk 0:00:27.7]} 37. Rc4 {[%clk 0:00:15.6]} 37... b3
{[%clk 0:00:25.5]} 38. Rd2 {[%clk 0:00:15.2]} 38... Bc2 {[%clk 0:00:23.6]} 39.
Kf1 {[%clk 0:00:12.1]} 39... b2 {[%clk 0:00:20.4]} 40. Rb4 {[%clk 0:00:11.6]}
40... b1=Q+ {[%clk 0:00:17.3]} 41. Rxb1 {[%clk 0:00:11.3]} 41... Bxb1 {[%clk
0:00:17.2]} 42. Rc2 {[%clk 0:00:11.1]} 42... Bxc2 {[%clk 0:00:16.4]} 43. Ke2
{[%clk 0:00:11]} 43... Bb3 {[%clk 0:00:15.7]} 44. Kf3 {[%clk 0:00:10.8]} 44...
Bd5+ {[%clk 0:00:15.6]} 45. Ke3 {[%clk 0:00:09.6]} 45... Rxc5 {[%clk 0:00:15.5]}
46. Ke2 {[%clk 0:00:09.1]} 46... Rc7 {[%clk 0:00:15.1]} 47. Kf1 {[%clk 0:00:09]}
47... b5 {[%clk 0:00:14.9]} 48. Ke1 {[%clk 0:00:08.9]} 48... b4 {[%clk
0:00:14.8]} 49. Kd2 {[%clk 0:00:08.5]} 49... b3 {[%clk 0:00:14.7]} 50. Kd3
{[%clk 0:00:08.4]} 50... b2 {[%clk 0:00:14.6]} 51. Kd4 {[%clk 0:00:08.3]} 51...
b1=Q {[%clk 0:00:14.2]} 52. Ke3 {[%clk 0:00:06.1]} 52... Qe4+ {[%clk 0:00:13.6]}
53. Kd2 {[%clk 0:00:05.1]} 53... Rc2+ {[%clk 0:00:13.2]} 54. Kd1 {[%clk
0:00:04.2]} 54... Qe2# {[%clk 0:00:13.1]} 0-1

[Event "Live Chess"]
[Site "Chess.com"]
[Date "2024.06.01"]
[Round "-"]
[White "Mangoalo"]
[Black "JanMur7"]
[Result "0-1"]
[WhiteElo "1009"]
[BlackElo "2294"]
[TimeControl "300"]
[EndTime "11:08:14 PDT"]
[Termination "JanMur7 won by resignation"]

1. e4 {[%clk 0:04:57.4]} 1... g6 {[%clk 0:04:55.8]} 2. Nf3 {[%clk 0:04:53.6]}
2... Bg7 {[%clk 0:04:55.2]} 3. Bc4 {[%clk 0:04:51.5]} 3... c5 {[%clk 0:04:54.7]}
4. d4 {[%clk 0:04:45.6]} 4... cxd4 {[%clk 0:04:53.4]} 5. Nxd4 {[%clk 0:04:45.5]}
5... Nc6 {[%clk 0:04:52.3]} 6. Be3 {[%clk 0:04:42.6]} 6... d6 {[%clk 0:04:49.3]}
7. Nc3 {[%clk 0:04:41.2]} 7... Nf6 {[%clk 0:04:46.6]} 8. Qd2 {[%clk 0:04:31.9]}
8... Ng4 {[%clk 0:04:43.5]} 9. O-O-O {[%clk 0:04:26.4]} 9... Nxe3 {[%clk
0:04:40.8]} 10. Qxe3 {[%clk 0:04:25.4]} 10... Nxd4 {[%clk 0:04:39.5]} 11. Rxd4
{[%clk 0:04:20.6]} 11... Bxd4 {[%clk 0:04:38.3]} 12. Qxd4 {[%clk 0:04:20.5]}
12... O-O {[%clk 0:04:37.5]} 13. h4 {[%clk 0:04:15.9]} 13... Qb6 {[%clk
0:04:35.8]} 14. Qd2 {[%clk 0:04:08.1]} 14... h5 {[%clk 0:04:32.8]} 15. Nd5
{[%clk 0:04:05.8]} 15... Qc5 {[%clk 0:04:23.9]} 16. Nxe7+ {[%clk 0:03:59.2]}
16... Kg7 {[%clk 0:04:23.2]} 17. Qc3+ {[%clk 0:03:53.5]} 17... Qe5 {[%clk
0:04:22.1]} 18. Nxc8 {[%clk 0:03:16.4]} 18... Qxc3 {[%clk 0:04:14.6]} 19. bxc3
{[%clk 0:03:14]} 19... Raxc8 {[%clk 0:04:14]} 20. Bb3 {[%clk 0:03:09.1]} 20...
Rxc3 {[%clk 0:04:13]} 21. Kb2 {[%clk 0:03:08.4]} 21... Rc7 {[%clk 0:04:10]} 22.
f4 {[%clk 0:03:07.5]} 22... Re8 {[%clk 0:04:08.8]} 23. Re1 {[%clk 0:03:03.4]}
23... Rce7 {[%clk 0:04:07.7]} 24. Bd5 {[%clk 0:03:00.5]} 24... b6 {[%clk
0:04:03.6]} 25. c4 {[%clk 0:02:58.5]} 25... f5 {[%clk 0:04:00.9]} 26. e5 {[%clk
0:02:55.3]} 26... dxe5 {[%clk 0:03:58.8]} 27. Rxe5 {[%clk 0:02:46.9]} 27... Rxe5
{[%clk 0:03:58.7]} 28. fxe5 {[%clk 0:02:46.6]} 28... Rxe5 {[%clk 0:03:58.6]} 29.
g4 {[%clk 0:02:38.7]} 29... fxg4 {[%clk 0:03:57]} 0-1